bitfinex/quotes_SOLUSD_20241123
["timestamp","ask_amount","ask_price","bid_price","bid_amount"]
[1732362490998,8.32131063,255.82,255.76,3.898]
[1732362492107,8.32131063,255.84,255.78,3.898]
[1732362492291,8.32131063,255.84,255.79,3.898]
[1732362493002,8.32131063,255.86,255.79,23.898]
[1732362493209,8.32131063,255.85,255.79,23.898]
[1732362493703,8.32131063,255.84,255.78,23.898]
[1732362494081,8.32131063,255.85,255.78,52.0688426]
[1732362494286,8.32131063,255.86,255.8,3.898]
[1732362494484,8.32131063,255.86,255.8,23.898]
[1732362495208,8.32131063,255.83,255.79,23.898]
[1732362495393,20.0,255.9,255.79,23.898]
[1732362495394,8.32131063,255.82,255.79,20.0]
[1732362495600,8.32131063,255.8,255.71,19.74538699]
[1732362495797,8.32131063,255.77,255.71,19.74538699]
[1732362496609,23.776884,255.83,255.75,23.07800182]
[1732362496610,8.32131063,255.79,255.75,23.07800182]
[1732362496813,8.32131063,255.79,255.76,39.9844523]
[1732362497194,8.32131063,255.84,255.78,20.0]
[1732362497590,8.32131063,255.83,255.79,3.898]
[1732362497791,8.32131063,255.83,255.77,23.898]
[1732362499300,8.32131063,255.82,255.78,3.898]
[1732362500098,8.32131063,255.8,255.78,3.898]
[1732362503412,8.32131063,255.8,255.75,23.898]
[1732362503598,8.32131063,255.78,255.75,23.898]
[1732362503801,8.32131063,255.78,255.75,3.898]
[1732362504023,8.32131063,255.76,255.75,3.898]
[1732362504391,8.32131063,255.76,255.74,3.898]
[1732362504809,23.776884,255.83,255.74,3.898]
[1732362504810,8.32131063,255.78,255.74,3.898]
[1732362509520,8.32131063,255.76,255.74,3.898]
[1732362509720,8.32131063,255.76,255.71,3.898]
[1732362509895,8.32131063,255.74,255.71,3.898]
[1732362510815,8.32131063,255.74,255.69,3.898]
[1732362511492,8.32131063,255.76,255.69,32.04162763]
[1732362511719,8.32131063,255.76,255.71,3.898]
[1732362511887,8.32131063,255.78,255.71,3.898]
[1732362512088,8.32131063,255.76,255.71,3.898]
[1732362512697,8.32131063,255.76,255.72,3.898]
[1732362513718,8.32131063,255.76,255.7,3.898]
[1732362516497,8.32131063,255.74,255.7,3.898]
[1732362518726,5.32467644,255.75,255.7,3.898]
[1732362522116,12.12094974,255.79,255.7,3.898]
[1732362522304,5.32467644,255.77,255.7,3.898]
[1732362522728,12.12094974,255.79,255.69,45.14699344]
[1732362522905,5.32467644,255.78,255.71,5.32467644]
[1732362523108,5.32467644,255.82,255.74,20.0]
[1732362524225,5.32467644,255.82,255.75,3.898]
[1732362524805,5.32467644,255.82,255.74,20.0]
[1732362525210,17.44562618,255.82,255.75,3.898]
[1732362525401,5.32467644,255.82,255.74,20.0]
[1732362525604,17.44562618,255.82,255.74,20.0]
[1732362526201,12.12094974,255.81,255.74,20.0]
[1732362526417,12.12094974,255.81,255.75,3.898]
[1732362527308,12.12094974,255.79,255.75,3.898]
[1732362530335,12.12094974,255.79,255.74,20.0]
[1732362531441,5.32467644,255.8,255.74,20.0]
[1732362533226,5.32467644,255.8,255.75,3.898]
[1732362533739,5.32467644,255.8,255.74,20.0]
[1732362534127,11.62094974,255.81,255.74,20.0]
[1732362534327,24.02926659,255.78,255.74,20.0]
[1732362534648,24.02926659,255.78,255.76,5.32467644]
[1732362534937,24.02926659,255.84,255.78,20.0]
[1732362535141,24.02926659,255.86,255.84,20.0]
[1732362535435,2.68446255,255.85,255.84,20.0]
[1732362535642,24.02926659,255.87,255.84,20.0]
[1732362536016,2.68446255,255.86,255.84,20.0]
[1732362536218,2.68446255,255.85,255.84,20.0]
[1732362536424,24.02926659,255.88,255.84,20.0]
[1732362536630,24.02926659,255.88,255.84,25.32467644]
[1732362536836,24.02926659,255.88,255.84,44.92413864]
[1732362537237,2.68446255,255.87,255.84,44.92413864]
[1732362537543,2.68446255,255.86,255.84,44.92413864]
[1732362537729,24.02926659,255.89,255.84,44.92413864]
[1732362537933,24.02926659,255.89,255.84,39.5994622]
[1732362538129,5.32467644,255.86,255.84,39.5994622]
[1732362538326,8.00821497,255.85,255.84,20.0]
[1732362538624,8.0078755,255.85,255.79,19.58666955]
[1732362538931,5.32467644,255.85,255.8,20.0]
[1732362539326,24.02926659,255.88,255.8,20.0]
[1732362539535,32.03743916,255.87,255.8,20.0]
[1732362539727,8.00817257,255.86,255.8,20.0]
[1732362539926,2.68349613,255.85,255.8,25.32467644]
[1732362540239,24.02926659,255.87,255.82,5.32467644]
[1732362540417,2.68357405,255.86,255.83,20.0]
[1732362540622,2.68357405,255.85,255.83,20.0]
[1732362540822,29.35394303,255.88,255.83,20.0]
[1732362541022,2.68405874,255.87,255.82,20.0]
[1732362541246,2.68405874,255.87,255.81,20.0]
[1732362541943,8.00873518,255.87,255.81,20.0]
[1732362542151,5.32467644,255.85,255.81,20.0]
[1732362542454,5.32467644,255.83,255.81,20.0]
[1732362542627,2.6831144,255.82,255.81,20.0]
[1732362543220,2.6831144,255.82,255.81,23.898]
[1732362544322,5.32467644,255.83,255.81,20.0]
[1732362544752,2.68275012,255.82,255.81,20.0]
[1732362546140,24.33177547,255.82,255.81,20.0]
[1732362546345,27.01452559,255.82,255.81,20.0]
[1732362549072,2.68275012,255.82,255.81,20.0]
[1732362550533,8.00742656,255.82,255.81,20.0]
[1732362552346,5.32467644,255.82,255.79,23.48466955]
[1732362552525,5.32467644,255.82,255.8,20.0]
[1732362552731,24.32235374,255.88,255.8,20.0]
[1732362552938,24.32235374,255.89,255.81,4.23390012]
[1732362553249,8.00648959,255.88,255.81,4.23390012]
[1732362553455,24.32235374,255.94,255.81,4.23390012]
[1732362553637,5.32467644,255.88,255.81,4.23390012]
[1732362554542,5.32467644,255.88,255.8,20.0]
[1732362554847,5.32467644,255.88,255.8,24.23390012]
[1732362555348,5.32467644,255.88,255.82,20.0]
[1732362555530,5.32467644,255.88,255.83,3.898]
[1732362555732,5.32467644,255.9,255.84,3.898]
[1732362555943,5.32467644,255.93,255.87,20.0]
[1732362556135,5.32467644,255.93,255.89,20.0]
[1732362556637,5.32467644,255.92,255.89,20.0]
[1732362556837,5.32467644,255.92,255.89,23.898]
[1732362557341,24.32235374,256.0,255.89,23.898]
[1732362557532,5.32467644,255.93,255.89,23.898]
[1732362558433,5.32467644,255.94,255.89,23.898]
[1732362558756,24.32235374,256.01,255.89,44.72685103]
[1732362558936,5.32467644,255.96,255.89,44.72685103]
[1732362559141,5.32467644,255.94,255.89,39.40217459]
[1732362559461,5.32467644,255.93,255.89,43.30017459]
[1732362559841,5.32467644,255.94,255.89,43.30017459]
[1732362562354,5.32467644,255.93,255.89,43.30017459]
[1732362562855,5.32467644,255.92,255.89,43.30017459]
[1732362564152,5.32467644,255.94,255.89,39.40217459]
[1732362564463,5.32467644,255.96,255.89,44.72685103]
[1732362564942,5.32467644,255.96,255.89,48.62485103]
[1732362565142,5.32467644,255.96,255.89,43.30017459]
[1732362565454,5.32467644,255.95,255.89,43.30017459]
[1732362565838,5.32467644,255.93,255.89,43.30017459]
[1732362566036,5.32467644,255.92,255.89,43.30017459]
[1732362566265,5.32467644,255.92,255.89,39.40217459]
[1732362566439,5.32467644,255.92,255.89,43.30017459]
[1732362567359,5.32467644,255.93,255.89,43.30017459]
[1732362567554,24.32235374,256.0,255.89,43.30017459]
[1732362567734,5.32467644,255.94,255.89,43.30017459]
[1732362568135,5.32467644,255.94,255.89,47.53407471]
[1732362569142,24.32235374,256.0,255.89,47.53407471]
[1732362569343,5.32467644,255.96,255.9,23.9118961]
[1732362569573,5.32467644,255.96,255.91,20.0]
[1732362569860,24.32235374,256.0,255.91,20.0]
[1732362570165,5.32467644,255.96,255.91,20.0]
[1732362571353,5.32467644,255.95,255.91,20.0]
[1732362571541,5.32467644,255.94,255.91,20.0]
[1732362572370,5.32467644,255.95,255.91,20.0]
[1732362573246,5.32467644,255.94,255.91,20.0]
[1732362573461,5.32467644,255.93,255.91,20.0]
[1732362574334,24.32235374,255.99,255.91,20.0]
[1732362574540,5.32467644,255.95,255.91,20.0]
[1732362574836,5.32467644,255.94,255.91,20.0]
[1732362575035,15.583411,256.05,255.91,20.0]
[1732362575036,5.32467644,255.95,255.91,20.0]
[1732362575256,5.32467644,255.94,255.91,20.0]
[1732362576459,5.32467644,255.93,255.91,20.0]
[1732362576842,5.32467644,255.94,255.91,25.39249312]
[1732362577464,5.32467644,255.95,255.91,25.39249312]
[1732362579160,5.32467644,255.94,255.91,25.39249312]
[1732362580264,5.32467644,255.93,255.91,25.39249312]
[1732362580460,5.32467644,255.94,255.91,25.39249312]
[1732362582055,10.0,256.05,255.91,25.39249312]
[1732362582368,5.32467644,255.95,255.91,25.39249312]
[1732362582761,5.32467644,255.94,255.91,25.39249312]
[1732362583063,10.0,256.11,255.93,20.0]
[1732362583275,5.32467644,255.97,255.93,20.0]
[1732362583568,10.0,256.06,255.93,20.0]
[1732362583776,5.32467644,255.96,255.93,20.0]
[1732362584565,5.32467644,255.95,255.93,20.0]
[1732362585774,5.32467644,255.96,255.93,20.0]
[1732362586445,5.32467644,255.95,255.93,20.0]
[1732362586768,0.29426193,255.95,255.93,20.0]
[1732362587671,5.32467644,255.95,255.93,20.0]
[1732362589761,5.32467644,255.94,255.93,20.0]
[1732362591965,33.776884,256.09,255.93,20.0]
[1732362592157,5.32467644,255.96,255.93,24.23390012]
[1732362592356,5.32467644,255.98,255.93,24.23390012]
[1732362593056,5.32467644,255.98,255.93,20.0]
[1732362593269,5.32467644,255.99,255.93,20.0]
[1732362593581,5.32467644,255.99,255.95,20.0]
[1732362598778,11.39544902,256.0,255.95,20.0]
[1732362599866,6.07077258,256.0,255.95,20.0]
[1732362600074,6.07077258,255.99,255.95,20.0]
[1732362600583,6.07077258,255.99,255.96,23.776884]
[1732362600767,6.07077258,256.0,255.97,20.0]
[1732362601089,6.07077258,256.01,255.97,20.0]
[1732362602878,6.07077258,256.0,255.97,20.0]
[1732362603266,6.07077258,256.01,255.97,20.0]
[1732362603466,6.07077258,256.0,255.97,20.0]
[1732362604068,11.39544902,256.0,255.95,20.0]
[1732362604273,6.07077258,255.99,255.95,20.0]
[1732362604456,21.29870576,256.1,255.89,3.898]
[1732362604457,5.32467644,255.96,255.89,3.898]
[1732362604657,36.04389988,256.07,255.89,3.898]
[1732362604658,5.32467644,255.94,255.89,3.898]
[1732362605280,5.32467644,255.93,255.89,3.898]
[1732362605657,5.32467644,255.93,255.89,23.898]
[1732362605872,5.32467644,255.94,255.89,23.898]
[1732362606394,5.32467644,255.93,255.89,23.898]
[1732362606582,5.32467644,255.93,255.88,5.5930356]
[1732362606763,3.99675499,255.9,255.82,5.32467644]
[1732362606963,5.32467644,255.92,255.84,5.32467644]
[1732362607581,5.32467644,255.92,255.85,3.898]
[1732362608278,5.32467644,255.92,255.85,23.898]
[1732362609357,5.32467644,255.93,255.85,23.898]
[1732362609586,5.32467644,255.93,255.85,29.22267644]
[1732362609880,5.32467644,255.94,255.88,3.898]
[1732362610076,5.32467644,255.93,255.88,3.898]
[1732362610871,5.32467644,255.93,255.89,3.898]
[1732362611382,36.512486,256.12,255.95,20.0]
[1732362611682,5.32467644,256.03,255.96,5.32467644]
[1732362611877,5.32467644,256.03,255.97,20.0]
[1732362612575,5.32467644,256.05,255.97,20.0]
[1732362612778,5.32467644,256.05,255.99,20.0]
[1732362612993,5.32467644,256.07,255.99,20.0]
[1732362613159,5.32467644,256.07,256.01,20.0]
[1732362613477,5.32467644,256.07,256.01,23.898]
[1732362613679,5.32467644,256.07,256.01,20.0]
[1732362613858,5.32467644,256.07,256.02,3.898]
[1732362614064,5.32467644,256.07,256.01,20.0]
[1732362614768,5.32467644,256.06,256.01,20.0]
[1732362614991,5.32467644,256.06,256.0,20.0]
[1732362615866,3.38067644,256.06,256.0,20.0]
[1732362616067,5.32467644,256.04,255.98,20.0]
[1732362617063,5.32467644,256.04,255.97,20.0]
[1732362617386,5.32467644,256.08,256.01,23.898]
[1732362617866,10.0,256.17,256.01,23.898]
[1732362618061,10.0,256.17,256.0,5.32467644]
[1732362618062,5.32467644,256.07,256.03,23.898]
[1732362618469,5.32467644,256.07,256.04,16.0979]
[1732362618764,5.32467644,256.07,256.05,20.0]
[1732362619378,5.32467644,256.06,256.05,20.0]
[1732362619574,10.0,256.18,256.05,23.898]
[1732362619779,5.32467644,256.11,256.05,20.0]
[1732362619987,10.0,256.22,256.06,5.32467644]
[1732362620177,5.32467644,256.17,256.11,25.32467644]
[1732362620478,5.32467644,256.19,256.12,25.32467644]
[1732362620667,48.224134,256.25,256.14,20.0]
[1732362620869,10.0,256.27,256.15,5.32467644]
[1732362621074,5.32467644,256.22,256.16,20.0]
[1732362621488,12.17121107,256.21,256.16,20.0]
[1732362621779,17.49588751,256.22,256.16,23.898]
[1732362622373,5.32467644,256.22,256.16,23.898]
[1732362622860,12.17121107,256.23,256.16,3.898]
[1732362623065,5.32467644,256.19,256.16,3.898]
[1732362623369,5.32467644,256.2,256.15,20.0]
[1732362626486,5.32467644,256.16,256.13,16.0979]
[1732362626789,5.32467644,256.14,256.08,19.8004861]
[1732362626991,5.32467644,256.12,256.08,19.8004861]
[1732362627186,5.32467644,256.13,256.08,19.8004861]
[1732362627780,5.32467644,256.13,256.12,20.0]
[1732362628367,5.32467644,256.14,256.12,20.0]
[1732362628574,5.32467644,256.13,256.12,20.0]
[1732362628981,5.32467644,256.13,256.09,20.0]
[1732362629279,5.32467644,256.11,256.09,20.0]
[1732362629471,3.56167644,256.11,256.09,20.0]
[1732362629670,3.56167644,256.11,256.08,20.0]
[1732362630782,5.32467644,256.13,256.08,20.0]
[1732362631791,5.32467644,256.13,256.08,25.49981546]
[1732362633403,5.32467644,256.13,256.09,3.898]
[1732362634789,12.17121107,256.2,256.09,3.898]
[1732362634995,5.32467644,256.18,256.1,20.0]
[1732362635372,12.17121107,256.19,256.13,5.32467644]
[1732362635577,17.49588751,256.21,256.14,20.0]
[1732362635779,5.32467644,256.21,256.14,20.0]
[1732362636186,17.49588751,256.23,256.15,9.22267644]
[1732362636379,12.17121107,256.23,256.16,20.0]
[1732362636579,5.32467644,256.22,256.16,20.0]
[1732362636788,5.32467644,256.22,256.16,23.898]
[1732362636990,5.32467644,256.22,256.16,3.898]
[1732362637201,5.32467644,256.22,256.16,23.898]
[1732362637508,5.32467644,256.21,256.16,20.0]
[1732362637799,5.32467644,256.21,256.15,20.0]
[1732362638104,5.32467644,256.2,256.14,20.0]
[1732362638280,5.32467644,256.22,256.15,20.0]
[1732362638475,5.32467644,256.23,256.16,3.898]
[1732362639618,5.32467644,256.23,256.15,29.04706663]
[1732362640202,5.32467644,256.23,256.16,16.2834]
[1732362640405,5.32467644,256.23,256.16,21.60807644]
[1732362640877,5.32467644,256.23,256.16,25.50607644]
[1732362641279,12.17121107,256.26,256.18,5.32467644]
[1732362641501,12.17121107,256.31,256.23,20.0]
[1732362641806,91.53046765,256.37,256.23,20.0]
[1732362641807,5.32467644,256.29,256.23,20.0]
[1732362642098,5.32467644,256.33,256.26,20.0]
[1732362642478,5.32467644,256.33,256.26,25.32467644]
[1732362643106,5.32467644,256.34,256.28,20.0]
[1732362643307,12.17121107,256.38,256.28,20.0]
[1732362643609,5.32467644,256.35,256.28,25.32467644]
[1732362643780,5.32467644,256.36,256.29,5.32467644]
[1732362643981,5.32467644,256.3,256.28,20.0]
[1732362644180,12.17121107,256.38,256.28,20.0]
[1732362644692,10.0,256.36,256.27,16.5881]
[1732362644892,5.32467644,256.28,256.27,16.5881]
[1732362645091,5.32467644,256.28,256.24,6.3185]
[1732362645295,5.32467644,256.27,256.24,6.3185]
[1732362646089,5.32467644,256.27,256.25,20.0]
[1732362646506,5.32467644,256.26,256.25,20.0]
[1732362647294,5.32467644,256.26,256.22,20.0]
[1732362647502,5.32467644,256.25,256.22,20.0]
[1732362648501,5.32467644,256.24,256.22,20.0]
[1732362648902,5.32467644,256.26,256.22,20.0]
[1732362649695,12.17121107,256.33,256.22,20.0]
[1732362649696,5.32467644,256.27,256.22,20.0]
[1732362653387,12.17121107,256.33,256.22,20.0]
[1732362653712,5.32467644,256.31,256.24,20.0]
[1732362653907,5.32467644,256.32,256.24,25.32467644]
[1732362654412,5.32467644,256.31,256.24,25.32467644]
[1732362654616,12.17121107,256.37,256.26,20.0]
[1732362654793,5.32467644,256.32,256.26,20.0]
[1732362655190,5.32467644,256.31,256.24,25.32467644]
[1732362655506,5.32467644,256.3,256.24,20.0]
[1732362655701,5.32467644,256.29,256.24,20.0]
[1732362655901,5.32467644,256.27,256.24,20.0]
[1732362656407,5.32467644,256.26,256.22,20.0]
[1732362656706,5.32467644,256.26,256.21,36.22378675]
[1732362657303,5.32467644,256.27,256.21,36.22378675]
[1732362658119,5.32467644,256.27,256.22,20.0]
[1732362658418,5.32467644,256.26,256.22,20.0]
[1732362660400,5.32467644,256.27,256.22,20.0]
[1732362660599,5.32467644,256.26,256.22,20.0]
[1732362662316,5.32467644,256.27,256.22,20.0]
[1732362662514,12.17121107,256.32,256.22,25.32467644]
[1732362662717,5.32467644,256.31,256.22,25.32467644]
[1732362663901,12.17121107,256.33,256.24,5.32467644]
[1732362664107,12.17121107,256.32,256.25,20.0]
[1732362664307,17.49588751,256.33,256.25,20.0]
[1732362665201,12.17121107,256.32,256.25,20.0]
[1732362665602,17.49588751,256.33,256.28,20.0]
[1732362666305,12.17121107,256.32,256.28,20.0]
[1732362666502,5.32467644,256.33,256.28,20.0]
[1732362666925,12.17121107,256.34,256.28,20.0]
[1732362667122,17.49588751,256.34,256.28,20.0]
[1732362668329,12.17121107,256.33,256.28,20.0]
[1732362669203,5.32467644,256.34,256.28,20.0]
[1732362669204,12.17121107,256.32,256.28,20.0]
[1732362670229,12.17121107,256.31,256.28,20.0]
[1732362671227,12.17121107,256.3,256.28,20.0]
[1732362671415,12.17121107,256.31,256.28,20.0]
[1732362671613,24.23846423,256.33,256.27,11.59887644]
[1732362671614,12.17121107,256.32,256.3,43.776884]
[1732362671926,36.31743365,256.37,256.32,43.776884]
[1732362671927,12.17121107,256.37,256.32,43.776884]
[1732362672230,12.17121107,256.37,256.34,20.0]
[1732362672526,12.17121107,256.39,256.34,20.0]
[1732362672829,24.23846423,256.41,256.34,20.0]
[1732362672830,12.17121107,256.4,256.34,20.0]
[1732362673012,17.49588751,256.4,256.33,20.0]
[1732362673213,5.32467644,256.38,256.3,25.32467644]
[1732362673421,5.32467644,256.38,256.31,3.898]
[1732362673614,5.32467644,256.38,256.3,25.32467644]
[1732362673826,5.32467644,256.38,256.3,29.22267644]
[1732362674130,5.32467644,256.38,256.3,25.32467644]
[1732362674323,12.17121107,256.41,256.34,43.776884]
[1732362674523,17.49588751,256.42,256.34,43.776884]
[1732362675039,17.49588751,256.42,256.4,5.32467644]
[1732362675040,12.17121107,256.42,256.4,5.32467644]
[1732362675221,12.17121107,256.42,256.35,40.51014362]
[1732362675222,12.17121107,256.43,256.41,20.0]
[1732362675623,12.17121107,256.44,256.42,3.898]
[1732362675928,12.17121107,256.45,256.42,3.898]
[1732362676239,12.17121107,256.44,256.37,5.32467644]
[1732362676411,12.17121107,256.44,256.38,43.776884]
[1732362676412,5.32467644,256.44,256.38,43.776884]
[1732362676613,5.32467644,256.44,256.39,3.898]
[1732362677240,5.32467644,256.4,256.36,20.0]
[1732362678109,21.29870576,256.49,256.36,20.0]
[1732362678110,5.32467644,256.39,256.36,20.0]
[1732362678920,5.32467644,256.39,256.37,3.898]
[1732362679635,5.32467644,256.39,256.35,21.3972]
[1732362679636,5.32467644,256.39,256.33,20.0]
[1732362679839,5.32467644,256.37,256.34,3.898]
[1732362680147,5.32467644,256.37,256.3,25.06796192]
[1732362680341,5.32467644,256.37,256.3,19.74328548]
[1732362680641,5.32467644,256.35,256.3,19.74328548]
[1732362680820,5.32467644,256.35,256.31,3.898]
[1732362681140,5.32467644,256.37,256.3,19.74328548]
[1732362681525,5.32467644,256.37,256.3,25.06796192]
[1732362681921,5.32467644,256.37,256.31,23.898]
[1732362684338,5.32467644,256.39,256.32,3.898]
[1732362684543,5.32467644,256.39,256.32,29.22267644]
[1732362685425,17.49588751,256.41,256.32,29.22267644]
[1732362686024,5.32467644,256.37,256.32,3.898]
[1732362687043,5.32467644,256.37,256.34,3.898]
[1732362687548,5.32467644,256.35,256.34,3.898]
[1732362687736,5.32467644,256.35,256.29,20.0]
[1732362688044,5.32467644,256.32,256.29,20.0]
[1732362688346,5.32467644,256.33,256.29,20.0]
[1732362688543,12.17121107,256.37,256.3,3.898]
[1732362688750,5.32467644,256.34,256.3,3.898]
[1732362689243,12.17121107,256.37,256.3,3.898]
[1732362689448,17.49588751,256.38,256.32,23.898]
[1732362689634,5.32467644,256.38,256.32,43.70050606]
[1732362690224,17.49588751,256.38,256.32,43.70050606]
[1732362692523,17.49588751,256.38,256.32,39.80250606]
[1732362692746,12.17121107,256.39,256.33,20.0]
[1732362693329,17.49588751,256.38,256.33,20.0]
[1732362693739,17.49588751,256.38,256.34,23.898]
[1732362694222,5.32467644,256.38,256.34,23.898]
[1732362694427,12.17121107,256.39,256.33,23.898]
[1732362695350,12.17121107,256.38,256.33,23.898]
[1732362695931,12.17121107,256.38,256.33,20.0]
[1732362696132,12.17121107,256.38,256.34,3.898]
[1732362696847,12.17121107,256.39,256.34,3.898]
[1732362698829,11.17121107,256.39,256.34,3.898]
[1732362699176,5.32467644,256.4,256.34,3.898]
[1732362699556,5.32467644,256.38,256.34,3.884]
[1732362702353,24.23846423,256.44,256.34,23.41853213]
[1732362702653,5.32467644,256.43,256.36,39.67865691]
[1732362703564,5.32467644,256.43,256.39,3.884]
[1732362704057,5.32467644,256.41,256.38,20.0]
[1732362704265,5.32467644,256.41,256.39,19.3586253]
[1732362704434,5.32467644,256.41,256.4,23.6531614]
[1732362704635,5.32467644,256.41,256.4,43.6531614]
[1732362707741,24.23846423,256.43,256.4,43.6531614]
[1732362707940,24.23846423,256.43,256.42,43.31993324]
[1732362708754,29.56314067,256.43,256.42,43.31993324]
[1732362708956,5.32467644,256.43,256.37,3.884]
[1732362709164,33.776884,256.47,256.37,23.41083159]
[1732362709465,33.776884,256.47,256.37,3.884]
[1732362709466,5.32467644,256.38,256.37,3.884]
[1732362710061,5.32467644,256.38,256.32,3.884]
[1732362710355,5.32467644,256.36,256.32,3.884]
[1732362711060,5.32467644,256.36,256.32,23.884]
[1732362711261,5.32467644,256.38,256.34,23.884]
[1732362711464,5.32467644,256.38,256.36,3.884]
[1732362711677,5.32467644,256.38,256.36,28.29266458]
[1732362711957,5.32467644,256.38,256.37,8.29266458]
[1732362712145,5.32467644,256.38,256.37,28.29266458]
[1732362712337,5.6844,256.47,256.39,3.884]
[1732362712542,5.32467644,256.43,256.41,23.884]
[1732362712939,5.32467644,256.43,256.41,28.29266458]
[1732362713550,5.32467644,256.43,256.42,20.0]
[1732362714150,5.32467644,256.43,256.36,20.0]
[1732362714347,0.61041096,256.38,256.36,39.86509026]
[1732362714545,0.61041096,256.38,256.36,23.74909026]
[1732362714757,0.61041096,256.38,256.37,23.884]
[1732362714957,0.61041096,256.38,256.37,28.29266458]
[1732362715463,5.32467644,256.4,256.37,28.29266458]
[1732362716173,23.776884,256.48,256.37,28.29266458]
[1732362716369,24.23846423,256.5,256.37,47.81949617]
[1732362716544,5.32467644,256.44,256.37,47.81949617]
[1732362718353,24.23846423,256.47,256.37,47.81949617]
[1732362718680,5.32467644,256.44,256.37,47.81949617]
[1732362719170,29.56314067,256.44,256.37,47.81949617]
[1732362719368,24.23846423,256.43,256.37,47.81949617]
[1732362720155,24.23846423,256.42,256.37,47.81949617]
[1732362721071,23.23846423,256.42,256.37,47.81949617]
[1732362721378,5.32467644,256.44,256.37,47.81949617]
[1732362722175,5.32467644,256.44,256.37,53.14417261]
[1732362722553,5.32467644,256.44,256.37,47.81949617]
[1732362723274,5.32467644,256.42,256.37,47.81949617]
[1732362724278,36.31743365,256.46,256.37,47.81949617]
[1732362724574,5.32467644,256.38,256.37,28.29266458]
[1732362724752,5.32467644,256.39,256.37,28.29266458]
[1732362725153,5.32467644,256.39,256.37,8.29266458]
[1732362725775,36.31743365,256.46,256.37,8.29266458]
[1732362725962,5.32467644,256.43,256.37,8.29266458]
[1732362726292,36.31743365,256.47,256.39,3.884]
[1732362726490,5.32467644,256.43,256.41,3.884]
[1732362727479,5.32467644,256.42,256.41,3.884]
[1732362729464,5.32467644,256.42,256.41,43.08427195]
[1732362730765,5.32467644,256.42,256.4,3.884]
[1732362731365,15.32467644,256.42,256.32,19.10391853]
[1732362731574,5.32467644,256.36,256.33,23.65663194]
[1732362731858,5.32467644,256.36,256.34,8.29266458]
[1732362732063,5.32467644,256.36,256.35,23.884]
[1732362732571,5.32467644,256.36,256.35,28.29266458]
[1732362733479,26.6233822,256.36,256.35,28.29266458]
[1732362733962,5.32467644,256.36,256.35,28.29266458]
[1732362734663,23.776884,256.35,256.29,3.884]
[1732362734870,5.32467644,256.3,256.29,3.884]
[1732362735679,5.32467644,256.3,256.25,23.62105736]
[1732362735680,5.32467644,256.3,256.26,3.884]
[1732362735875,5.32467644,256.28,256.27,28.29266458]
[1732362736384,5.32467644,256.31,256.29,43.58839885]
[1732362736574,5.32467644,256.31,256.3,8.29266458]
[1732362736764,5.32467644,256.31,256.3,28.29266458]
[1732362737973,36.64707023,256.38,256.32,3.884]
[1732362738168,5.32467644,256.35,256.32,8.29266458]
[1732362738375,5.32467644,256.35,256.34,3.884]
[1732362741069,5.32467644,256.35,256.33,3.884]
[1732362741266,5.32467644,256.34,256.33,3.884]
[1732362741681,56.64707023,256.39,256.33,3.884]
[1732362741984,36.64707023,256.37,256.33,3.884]
[1732362742165,46.64707023,256.37,256.27,3.884]
[1732362742367,10.0,256.36,256.27,28.28240222]
[1732362743296,46.64707023,256.36,256.27,28.28240222]
[1732362744093,5.32467644,256.28,256.27,28.28240222]
[1732362745487,15.32467644,256.28,256.21,3.884]
[1732362745687,5.32467644,256.22,256.21,3.884]
[1732362746791,5.32467644,256.22,256.19,23.884]
[1732362747298,5.32467644,256.22,256.14,4.39840222]
[1732362747299,10.0,256.19,256.14,4.39840222]
[1732362747591,10.0,256.19,256.09,19.95395144]
[1732362747592,11.40365467,256.15,256.09,19.95395144]
[1732362747772,0.45007802,256.1,256.08,15.8265]
[1732362747972,6.07897823,256.12,256.1,3.9483242]
[1732362748170,10.0,256.17,256.09,3.884]
[1732362748171,5.32467644,256.11,256.09,3.884]
[1732362748370,6.07897823,256.14,256.09,3.884]